Cogmind - Beta 12 @@@ ROGUE MODE // 2023.03.06 @ 03:34:49 // Winter2019/RPGLIKE Player: ArabianSandBoa Result: Destroyed by I5-UR3(s) with Heavy Battle Rifle Performance ------------- Evolutions (5) 2500 Regions Visited (26) 5200 Robots Destroyed (620) 3100 Value Destroyed (28688) 28688 Prototype IDs (221) 4420 Alien Tech Used (0) 0 Bonus (21442) 21442 TOTAL SCORE: 65350 Bonus ------- Triggered High Security 1500 High Alert Combat Kills 12817 Follower Combat Kills 2727 Entered Garrisons 600 Network Hubs Disabled 400 Aligned with FarCom 300 Met Data Miner 300 Used Data Conduit 3000 Built Enhanced Grunts 300 A7 Reached Mainframe 300 Met R17 at Cetus 500 Pursued by Intercept 1000 Friendly Fire -2302 Cogmind --------- Core Integrity 0/800 Matter 225/300 Energy 987/1040 System Corruption 2% Temperature Hot (277) Movement Treading (166) Location -5/Factory Parts ------- > --- POWER (4) -------- Antimatter Reactor Antimatter Reactor Particle Reactor Quantum Reactor > --- PROPULSION (5) --- Medium Treads Improved Heavy Siege Treads Centrium Heavy Treads > --- UTILITY (9) ------ Experimental Targeting Computer Improved Armor Integrity Analyzer Advanced Particle Charger Advanced Weapon Cycler Improved Transmission Jammer Damper Plating > --- WEAPON (4) ------- Cooled Plasma Cannon (fused) Cooled Plasma Cannon Linked Autogun > --- INVENTORY (5) ---- Improved Cooling System Encrypted Comm Array Stasis Canceller Master Tearclaws Peak State ------------ > --- POWER ------------ Cooled Fission Core Micro Fission Core Antimatter Reactor Quantum Reactor > --- PROPULSION ------- Centrium Heavy Treads Centrium Heavy Treads Advanced Surge Thruster > --- UTILITY ---------- Experimental Targeting Computer Improved Armor Integrity Analyzer Advanced Particle Charger Advanced Weapon Cycler Improved Transmission Jammer Experimental Phase Shifter EM Disruption Field Advanced Hacking Suite > --- WEAPON ----------- Cooled Plasma Cannon Cooled Plasma Cannon Linked Autogun > --- INVENTORY -------- Encrypted Comm Array Stasis Canceller Advanced System Restoration Module Master Tearclaws [Rating: 158] Favorites ----------- Power Antimatter Reactor Engine Light Ion Engine Power Core Cooled Fission Core Reactor Antimatter Reactor Propulsion Potential Leg Treads Improved Medium Treads Leg Potential Leg Wheel Armored Huge Wheel Hover Unit Combat Airjet Flight Unit Nuclear Pulse Array Utility Advanced Weapon Cycler Device Advanced Weapon Cycler Processor Armor Integrity Analyzer Hackware Advanced System Shield Protection Damper Plating Weapon Cooled Plasma Cannon Energy Gun Beam Rifle Energy Cannon Cooled Plasma Cannon Ballistic Gun XL Autogun Array Ballistic Cannon Assault Cannon Launcher Scatter Rocket Array Impact Weapon Maul Slashing Weapon Master Tearclaws Build | -11 -10 -10 -10 -9 -8 -8 -8 -8 -8 -8 -8 -7 -7 -7 -7 -7 -7 -6 -6 -6 -6 -6 -6 -5 -5 -5 ------- Run | Jun Mat Min Exi Min Mat Gar Mat Gar Mat Gar Mat Fac Was Fac Low Low Dat Pro Fac Ext Cet Arc Hub Fac Was Fac Slots Evolved 18 | . 8 . . . 4 1 . 1 . . 1 . . . . . . . . . 1 . . 1 1 . Power 3 | . . . . . . 1 . . . . . . . . . . . . . . 1 . . 1 . . Propulsion 4 | . 1 . . . 2 . . . . . 1 . . . . . . . . . . . . . . . Utility 8 | . 4 . . . 2 . . 1 . . . . . . . . . . . . . . . . 1 . Weapon 3 | . 3 . . . . . . . . . . . . . . . . . . . . . . . . . Parts Attached 193 | 1 23 5 5 5 16 7 2 8 . 4 4 13 6 . 4 15 7 5 13 1 8 3 5 9 15 9 Power 19 | . . . . 1 2 3 . 1 . 1 . . 3 . . . . . . . 2 . . 1 5 . Engine 1 | . . . . . 1 . . . . . . . . . . . . . . . . . . . . . Core 9 | . . . . 1 1 3 . 1 . 1 . . 1 . . . . . . . . . . 1 . . Reactor 9 | . . . . . . . . . . . . . 2 . . . . . . . 2 . . . 5 . Propulsion 31 | . 3 2 2 . 6 . . 1 . . 2 2 . . 1 3 . . 1 1 2 . 1 . 3 1 Treads 8 | . . . . . . . . . . . . . . . . 3 . . . . 2 . . . 2 1 Leg 8 | . . . 2 . 2 . . . . . 2 1 . . 1 . . . . . . . . . . . Wheel 6 | . 3 . . . . . . . . . . 1 . . . . . . . 1 . . 1 . . . Hover 3 | . . 2 . . . . . . . . . . . . . . . . 1 . . . . . . . Flight 6 | . . . . . 4 . . 1 . . . . . . . . . . . . . . . . 1 . Utility 94 | . 8 . 2 2 8 4 . 6 . 1 2 9 3 . 3 4 1 4 8 . 2 3 4 6 6 8 Device 55 | . 2 . 2 1 5 1 . 5 . . . 6 . . 2 4 1 4 3 . 1 3 1 3 3 8 Storage . | . . . . . . . . . . . . . . . . . . . . . . . . . . . Processor 16 | . 4 . . 1 2 2 . . . . 1 1 . . 1 . . . 2 . . . . 1 1 . Hackware 12 | . 1 . . . 1 1 . . . . . . 2 . . . . . 2 . 1 . 2 2 . . Protection 11 | . 1 . . . . . . 1 . 1 1 2 1 . . . . . 1 . . . 1 . 2 . Artifact . | . . . . . . . . . . . . . . . . . . . . . . . . . . . Weapon 49 | 1 12 3 1 2 . . 2 . . 2 . 2 . . . 8 6 1 4 . 2 . . 2 1 . Energy Gun 7 | 1 3 . . . . . 1 . . 1 . . . . . . . . . . 1 . . . . . Energy Cannon 19 | . 6 . . . . . . . . . . . . . . 2 4 1 3 . 1 . . 1 1 . Ballistic Gun 7 | . . . 1 2 . . 1 . . 1 . 1 . . . . . . . . . . . 1 . . Ballistic Cannon 1 | . . . . . . . . . . . . . . . . 1 . . . . . . . . . . Launcher 9 | . 2 2 . . . . . . . . . 1 . . . 2 1 . 1 . . . . . . . Special Weapon . | . . . . . . . . . . . . . . . . . . . . . . . . . . . Impact Weapon 2 | . 1 1 . . . . . . . . . . . . . . . . . . . . . . . . Slashing Weapon 4 | . . . . . . . . . . . . . . . . 3 1 . . . . . . . . . Piercing Weapon . | . . . . . . . . . . . . . . . . . . . . . . . . . . . Special Melee Weapon . | . . . . . . . . . . . . . . . . . . . . . . . . . . . Unidentified Prototypes 10 | . . . 3 2 1 . 1 . . . . 1 1 . . . . . . . . . . 1 . . Corrupted Parts 1 | . . . . . . . . . . . . . . . . . . . . . 1 . . . . . System Corruption 9 | . . . . . . . . . . . . . . . . . . . . . 9 . . . . . Parts Lost 3 | . . . . . . . . 1 . . . . . . . . . 1 . . . . . . 1 . Power 1 | . . . . . . . . . . . . . . . . . . . . . . . . . 1 . Propulsion . | . . . . . . . . . . . . . . . . . . . . . . . . . . . Utility 2 | . . . . . . . . 1 . . . . . . . . . 1 . . . . . . . . Weapon . | . . . . . . . . . . . . . . . . . . . . . . . . . . . Highest Loss Streak 1 | . . . . . . . . 1 . . . . . . . . . 1 . . . . . . 1 . To Critical Strikes . | . . . . . . . . . . . . . . . . . . . . . . . . . . . Average Slot Usage (%) 77 | . 95 100 70 73 79 81 81 79 77 76 76 77 65 63 63 60 72 72 79 75 83 85 87 86 69 70 Engine 1 | . 11 8 8 . . . . . . . . . . . . . . . . . . . . . . . Core 5 | . . . . 7 6 7 11 10 11 11 10 10 6 5 5 5 5 5 5 5 5 5 5 5 1 . Reactor 4 | . . . . . . . . . . . . . 3 5 5 5 5 5 5 5 9 10 10 9 15 18 Treads 3 | . . . . . . . . . . . . . . . . 2 15 15 3 . 6 10 10 9 8 11 Leg 6 | . 3 . 8 16 12 11 11 11 11 11 11 14 15 15 15 6 . . . . . . . . . . Wheel 3 | . 10 2 . . . . . . . . . 1 5 5 5 5 5 5 5 7 7 5 3 3 . . Flight 1 | . . . . . 9 11 11 7 5 5 5 3 . . . . . . . . . . . . . . Device 17 | . 10 16 16 15 19 16 11 20 27 27 26 23 6 . 9 10 15 15 23 21 16 15 23 25 15 13 Processor 12 | . 22 16 16 24 18 22 23 17 11 11 10 12 13 10 10 9 5 5 6 10 10 10 10 9 9 9 Hackware 1 | . . 8 7 . 4 1 5 3 . . . . 3 10 . . . . 2 . 3 4 2 2 1 . Protection 3 | . . . . . . . . 1 5 5 5 5 5 5 5 5 5 3 3 5 5 5 3 1 2 4 Energy Cannon 8 | . 25 25 . . . . . . . . . . . . . . 9 10 15 15 14 15 15 11 8 9 Ballistic Gun 2 | . . . 4 7 6 5 4 5 5 4 5 5 5 5 5 1 . . . . . . . 1 4 4 Launcher 1 | . . 7 . . . . . . . . . . . . . 1 . . 2 5 5 5 5 4 . . Naked Turns . | . . . . . . . . . . . . . . . . . . . . . . . . . . . Heaviest Build 151 | 5 20 20 26 27 29 41 41 72 72 84 77 76 91 90 96 111 113 114 92 92 112 112 112 101 151 151 Greatest Support 193 | 10 26 26 60 60 70 70 70 70 70 70 85 85 85 38 85 85 38 100 38 54 90 90 170 170 170 193 Greatest Overweight (x) 6 | . 6 1 6 . 2 . . 1 1 1 1 1 2 2 2 2 2 2 2 2 4 1 4 . 1 . Average Overweight (x) . | . . . . . . . . . 1 . . . 1 2 1 1 2 1 1 1 1 1 1 . . . Largest Inventory Capacity 5 | . 2 2 2 2 4 4 4 4 4 4 4 4 4 5 5 5 5 5 5 5 5 5 5 5 5 5 Average Capacity 4 | . 2 2 2 2 2 4 4 4 4 4 4 4 4 4 5 5 5 5 5 5 5 5 5 5 5 5 Most Carried 5 | . 2 2 2 2 4 4 4 4 4 4 4 4 4 5 5 5 5 5 5 5 5 5 5 5 5 5 Average Carried 3 | . 1 1 1 1 2 4 4 3 4 3 3 3 3 4 4 3 4 4 4 4 4 4 3 4 4 5 Final Capacity 5 | . 2 2 2 2 4 4 4 4 4 4 4 4 4 5 5 5 5 5 5 5 5 5 5 5 5 5 Final Carried 5 | . 1 1 2 2 4 4 4 4 4 4 3 4 4 5 5 5 5 3 5 5 4 5 4 5 5 5 Class Distribution -------------------- 36% | Hacker-Gunner 18% | Scavenger-Gunner 9% | Commander-Gunner 8% | Gunner 6% | Hacker-Mutant 5% | Scavenger-Mutant 4% | Mutant 3% | Hacker-Gladiator Dominant Class ---------------- Mutant | -10/Materials Scavenger-Scout | -10/Mines Skirmisher | -10/Exiles Scavenger-Gunner | -9/Mines Scavenger-Gunner | -8/Materials Gunner | -8/Garrison Gunner | -8/Materials Commander-Gunner | -8/Garrison Gunner | -8/Materials Hacker-Gunner | -8/Garrison Hacker-Gunner | -8/Materials Hacker-Gunner | -7/Factory Hacker-Gunner | -7/Waste Hacker-Gunner | -7/Factory Hacker-Gunner | -7/Lower Caves Hacker-Gladiator | -7/Lower Caves Hacker-Mutant | -7/Data Miner Scavenger-Mutant | -6/Proximity Caves Hacker-Gunner | -6/Factory Hacker-Gunner | -6/Extension Commander-Gunner | -6/Cetus Commander-Gunner | -6/Archives Scavenger-Gunner | -6/Hub_04(d) Scavenger-Gunner | -5/Factory Scavenger-Gunner | -5/Waste Scavenger-Gunner | -5/Factory Resources | -11 -10 -10 -10 -9 -8 -8 -8 -8 -8 -8 -8 -7 -7 -7 -7 -7 -7 -6 -6 -6 -6 -6 -6 -5 -5 -5 ----------- Run | Jun Mat Min Exi Min Mat Gar Mat Gar Mat Gar Mat Fac Was Fac Low Low Dat Pro Fac Ext Cet Arc Hub Fac Was Fac Matter Collected 15937 | 200 310 160 . 763 2209 1293 307 1253 105 1415 2085 2080 265 1040 295 259 176 35 250 60 183 41 90 334 465 264 Remotely 7594 | . . . . . 699 862 . 839 105 1386 2075 1628 . . . . . . . . . . . . . . Salvage Created 28151 | . 1832 275 . 730 2909 1169 428 1252 164 1920 3363 2613 740 1025 367 126 317 870 1440 1435 133 310 541 1573 2130 489 Parts 1419 | . 112 15 5 32 147 98 27 99 12 123 158 129 22 64 15 11 6 22 56 66 18 17 34 72 34 25 Haulers Intercepted 26 | . 2 . . . 6 . 1 . . . 4 4 . 1 . . . . 3 . . . 2 2 . 1 Recyclers Shooed 4 | . 1 . . 2 1 . . . . . . . . . . . . . . . . . . . . . Parts Field Recycled . | . . . . . . . . . . . . . . . . . . . . . . . . . . . Retrieved Matter . | . . . . . . . . . . . . . . . . . . . . . . . . . . . Parts Self-Destructed 28 | . . . . . . . . . . . . . . . 2 5 . 21 . . . . . . . . Prevented . | . . . . . . . . . . . . . . . . . . . . . . . . . . . Kills | -11 -10 -10 -10 -9 -8 -8 -8 -8 -8 -8 -8 -7 -7 -7 -7 -7 -7 -6 -6 -6 -6 -6 -6 -5 -5 -5 ------- Run | Jun Mat Min Exi Min Mat Gar Mat Gar Mat Gar Mat Fac Was Fac Low Low Dat Pro Fac Ext Cet Arc Hub Fac Was Fac Combat Hostiles Destroyed 474 | . 24 20 2 10 39 41 6 37 3 45 65 35 5 22 3 7 4 11 24 21 8 2 5 24 6 5 Melee 2 | . . . . . . . . . . . . . . . . 1 . 1 . . . . . . . . Guns 319 | . 4 . 2 10 35 41 6 37 3 45 62 35 5 21 3 2 . . . . . . . 4 3 1 Cannons 99 | . 19 8 . . . . . . . . . . . . . . 1 8 10 17 4 2 4 19 3 4 AOE 46 | . 1 12 . . 4 . . . . . 3 . . . . 4 2 . 10 4 4 . 1 1 . . Classes Destroyed 24 | . 9 2 . 1 2 2 1 . . . 3 1 1 . 2 . . . . . . . . . . . Worker 17 | . 2 . . 1 2 . . . 1 . 3 4 . . . . . . . . . . 3 1 . . Builder 27 | . 11 1 . . 2 . . . . . 2 3 . 1 . . . . 1 2 . . . 4 . . Tunneler 11 | . 4 . . 2 3 . . . . . . . . . . . . . 1 . . . 1 . . . Hauler 26 | . 2 . . . 6 . 1 . . . 4 4 . 1 . . . . 3 . . . 2 2 . 1 Recycler 20 | . 4 1 . 3 4 . 1 . . . . 4 . . . . . . . 2 . . 1 . . . Mechanic 6 | . . . . . . . . . . . 5 . . . . . . . . 1 . . . . . . Operator 20 | . 4 . . . 1 . 1 . . . 1 1 . 1 . . . . 2 1 . 3 2 1 . 2 Watcher 27 | . 3 . . . 5 . 2 . . 2 3 3 . 1 . . . . 2 2 1 . . 2 . 1 Swarmer 75 | . 3 2 . 3 4 13 . 9 . 5 7 6 . 5 . 3 . . 8 4 . . 2 1 . . Cutter 3 | . . . . . . . . . . . . 3 . . . . . . . . . . . . . . Grunt 181 | . 21 1 . 6 23 10 3 13 2 10 29 15 . 8 . . . 1 11 6 4 . 2 13 . 3 Brawler 26 | . . . . . . . 1 . . 7 11 3 . . . . . . . 2 . . . 1 . 1 Duelist 11 | . . . . 1 . . 1 . . 2 2 1 . . . . . . . 1 . . . 2 . 1 Protector 5 | . . . . . . . . . . . 2 2 . . . . . . . . . . . 1 . . Sentry 66 | . . . . . 9 5 1 5 1 11 12 3 . 6 . . . . 2 7 . 2 1 1 . . Demolisher 5 | . . 2 . . . 1 . . . . . . . . . . . . . . . . . 2 . . Specialist 14 | . . . . . . 2 . 5 . 3 . . . . . . . 3 . 1 . . . . . . Hunter 24 | . . . . . 3 2 . 3 . 6 1 . . 1 . . . 5 2 . . . . 1 . . Programmer 20 | . . . . . . 8 . 3 . 1 . 1 . 2 . 1 . 1 1 . 1 . . 1 . . Heavy 2 | . . . . . . . . . . . 1 1 . . . . . . . . . . . . . . Behemoth 3 | . . . . . . . . . . . . . . . 1 1 . 1 . . . . . . . . Compactor 11 | . . . . . . . . . . . . . 5 . . . . . . . . . . . 6 . Cetus Guard 3 | . . . . . . . . . . . . . . . . . . . . . 3 . . . . . Enhanced Grunt 4 | . . . . . . . . . . . . . . . . . 4 . . . . . . . . . Tracker 2 | . . . . . . . . . . . . . . . . . . . 1 . . . . 1 . . Combat Programmer 2 | . . . . . . . . . . . . . . . . . . . 1 . . . . 1 . . Packrat 1 | . . . . . . . . . . . . . . . 1 . . . . . . . . . . . Thief 1 | . . . . . . . . . . . . . . . . 1 . . . . . . . . . . Master Thief 3 | . . . . . . . . . . . . . . . 2 1 . . . . . . . . . . Assembled 16 | . . 15 1 . . . . . . . . . . . . . . . . . . . . . . . Surgeon 2 | . . . . . . . . . . . . . . . 2 . . . . . . . . . . . Thug 1 | . . . . . . . . . . 1 . . . . . . . . . . . . . . . . Butcher 1 | . . . . . . . . . . . . . . . . . . . . 1 . . . . . . Guerrilla 1 | . . . . . . . . . . . . . . . . . . . . . . . 1 . . . Best Kill Streak 41 | . 10 13 2 9 18 12 7 12 2 7 41 17 4 9 2 3 3 2 14 6 4 3 9 9 4 2 Combat Bots Only 36 | . 4 11 2 5 8 12 5 12 2 7 36 7 4 8 2 3 3 2 11 6 4 2 3 5 4 2 Max Kills in Single Turn 8 | . 2 3 1 2 4 2 3 4 1 2 6 4 1 2 2 3 2 1 8 5 4 1 6 2 1 1 Gunslinging . | . . . . . . . . . . . . . . . . . . . . . . . . . . . Exploded 6 | . 1 3 . . 4 . . . . . 2 . . . . 3 2 . 6 4 4 . 1 1 . . Melee 1 | . . . . . . . . . . . . . . . . 1 . 1 . . . . . . . . Uniques/NPCs Destroyed 1 | . . . 1 . . . . . . . . . . . . . . . . . . . . . . . 8R-AWN (-10/Exiles) Combat | -11 -10 -10 -10 -9 -8 -8 -8 -8 -8 -8 -8 -7 -7 -7 -7 -7 -7 -6 -6 -6 -6 -6 -6 -5 -5 -5 -------- Run | Jun Mat Min Exi Min Mat Gar Mat Gar Mat Gar Mat Fac Was Fac Low Low Dat Pro Fac Ext Cet Arc Hub Fac Was Fac Damage Taken 9773 | . 400 522 732 69 301 325 182 183 78 382 338 326 14 663 117 748 694 871 556 347 73 22 165 949 126 590 Core 6671 | . 347 424 583 52 233 260 147 143 57 256 239 224 5 428 54 375 347 444 356 194 38 12 127 798 99 429 Absorbed by Shields 1378 | . . . . . 4 . . 8 30 151 133 91 . . . . . . 215 187 30 22 174 333 . . Redirected to Core 5573 | . 167 328 512 52 233 221 130 114 49 240 211 211 5 337 54 368 347 403 317 163 38 12 112 525 99 325 Regen/Repaired (Parts) 191 | . . . . . . . . . . . . . 66 . . . . . . . . . . . 110 15 Core Remaining (%) 72 | 100 . . . 45 . . . . . . 92 . . . . . . 39 . . . . 84 . . . Volleys Fired 1312 | . 130 30 11 35 136 90 13 72 7 92 135 130 15 68 17 13 14 35 70 44 14 6 16 71 27 21 Largest 3 | . 3 3 1 1 1 1 1 1 1 1 1 1 1 1 1 1 2 2 3 3 3 3 3 3 3 3 Hottest 315 | . 204 204 60 60 60 60 60 60 60 225 60 60 60 60 60 60 170 180 315 105 105 105 105 105 240 100 Shots Fired 2012 | . 299 66 11 35 136 90 13 72 7 92 135 130 15 68 17 13 26 66 191 119 35 17 43 183 72 61 Gun 922 | . 32 . 11 35 136 90 13 72 7 92 135 130 15 68 17 5 . . . . . . . 20 25 19 Cannon 1060 | . 259 56 . . . . . . . . . . . . . 4 24 66 189 118 34 17 43 161 47 42 Launcher 30 | . 8 10 . . . . . . . . . . . . . 4 2 . 2 1 1 . . 2 . . Special . | . . . . . . . . . . . . . . . . . . . . . . . . . . . Kinetic 892 | . . . 11 35 136 90 13 72 7 90 135 130 15 68 17 9 . . . . . . . 20 25 19 Thermal 1090 | . 291 56 . . . . . . . 2 . . . . . . 24 66 189 118 34 17 43 161 47 42 Explosive 30 | . 8 10 . . . . . . . . . . . . . 4 2 . 2 1 1 . . 2 . . Electromagnetic . | . . . . . . . . . . . . . . . . . . . . . . . . . . . Robot Hit Streak 52 | . 40 9 41 11 19 25 9 52 13 31 16 40 26 13 19 9 19 11 21 29 9 15 17 29 40 15 Robot Miss Streak 12 | . 4 3 1 6 12 3 1 4 1 5 4 5 1 4 2 4 2 1 8 2 1 . 1 3 1 1 Penetration Max 1 | . . . . 1 . . . . . . . . . . . . . . . . . . . . . . Secondary Targets 2 | . 2 . . . . . . . . . . . . . . . . . . . . . . . . . Max Gunslinging Chain 1 | . 1 . . . . . . . . . . . . . . . . . . . . . . . . . Shots Hit Robots 1140 | . 127 27 11 22 88 57 10 44 3 65 90 62 14 31 12 41 24 69 74 68 18 15 15 72 58 23 Core Hits 916 | . 54 36 9 18 80 53 11 45 5 60 98 68 13 35 12 30 31 27 57 38 24 6 22 55 16 13 Critical Kills 6 | . . . . 1 . . . . . . . . . . . . 1 2 2 . . . . . . . Critical Parts Destroyed 2 | . 1 . . 1 . . . . . . . . . . . . . . . . . . . . . . Critical Strikes 10 | . 3 . . 2 . . . . . . . . . . . . 1 2 2 . . . . . . . Burn 2 | . 2 . . . . . . . . . . . . . . . . . . . . . . . . . Meltdown 5 | . . . . . . . . . . . . . . . . . 1 2 2 . . . . . . . Destroy 2 | . . . . 2 . . . . . . . . . . . . . . . . . . . . . . Smash 1 | . 1 . . . . . . . . . . . . . . . . . . . . . . . . . Melee Attacks 100 | . 19 . . . . . . . . . . . . . . 42 1 38 . . . . . . . . Impact 19 | . 19 . . . . . . . . . . . . . . . . . . . . . . . . . Slashing 81 | . . . . . . . . . . . . . . . . 42 1 38 . . . . . . . . Piercing . | . . . . . . . . . . . . . . . . . . . . . . . . . . . Sneak Attacks 3 | . 2 . . . . . . . . . . . . . . . 1 . . . . . . . . . Combat Hostiles . | . . . . . . . . . . . . . . . . . . . . . . . . . . . Follow-up Attacks 5 | . . . . . . . . . . . . . . . . 5 . . . . . . . . . . Damage Inflicted 70640 | . 2951 1532 1050 1100 5717 4013 715 3738 491 5193 8398 5083 1538 2036 1299 972 1105 2228 4473 4164 1658 766 1660 4472 3224 1064 Guns 40204 | . 258 . 1050 1100 5370 4013 684 3555 309 5193 7402 4623 1538 2036 1123 288 . . . . . . . 395 1087 180 Cannons 21288 | . 2169 567 . . . . . . . . . . . . . . 406 1968 3442 3642 1078 766 916 3313 2137 884 Explosions 8634 | . 345 965 . . 347 . 31 183 182 . 996 460 . . 176 526 687 95 1031 522 580 . 744 764 . . Melee 514 | . 179 . . . . . . . . . . . . . . 158 12 165 . . . . . . . . Ramming . | . . . . . . . . . . . . . . . . . . . . . . . . . . . Kinetic 39946 | . . . 1050 1100 5370 4013 684 3555 309 5193 7402 4623 1538 2036 1123 288 . . . . . . . 395 1087 180 Thermal 22622 | . 2683 567 . . . . . . 100 . 55 394 . . 176 . 406 2063 3442 3642 1078 766 916 3313 2137 884 Explosive 6814 | . 89 965 . . 347 . 31 183 82 . 941 66 . . . 526 687 . 1031 522 580 . . 764 . . Electromagnetic 744 | . . . . . . . . . . . . . . . . . . . . . . . 744 . . . Impact 179 | . 179 . . . . . . . . . . . . . . . . . . . . . . . . . Slashing 335 | . . . . . . . . . . . . . . . . 158 12 165 . . . . . . . . Piercing . | . . . . . . . . . . . . . . . . . . . . . . . . . . . Highest Corruption 11 | . . . . . 1 3 3 3 . 1 1 . . . . . . 2 1 2 11 10 10 3 2 2 Average Corruption 2 | . . . . . 1 2 3 2 . 1 1 . . . . . . 1 1 1 9 8 4 2 1 1 Corruption Purged 13 | . . . . . . . . 3 . . . . . . . . . . . . 2 6 . 1 1 . Corruption Blocked . | . . . . . . . . . . . . . . . . . . . . . . . . . . . Effects 119 | . . . . . 6 7 2 10 . 10 5 . . . . . . 5 1 11 21 12 6 14 5 4 Message Errors 19 | . . . . . 1 3 . 1 . . . . . . . . . 1 1 1 4 3 1 3 . . Matter Fused 35 | . . . . . 1 1 . 2 . 4 3 . . . . . . 1 . 1 6 3 4 3 3 3 Heat Flow Errors 9 | . . . . . 1 1 1 . . . 1 . . . . . . . . . 2 2 . . 1 . Energy Discharges 24 | . . . . . 1 2 1 4 . 1 . . . . . . . 1 . 2 7 2 . 2 1 . Parts Rejected 1 | . . . . . . . . . . . . . . . . . . 1 . . . . . . . . Parts Fused 2 | . . . . . . . . . . . . . . . . . . . . 2 . . . . . . Data Loss (minor) 13 | . . . . . 1 . . 1 . 2 1 . . . . . . 1 . 2 1 1 1 2 . . Data Loss (major) 4 | . . . . . 1 . . . . . . . . . . . . . . 2 . . . 1 . . Misfires 4 | . . . . . . . . 1 . 1 . . . . . . . . . . 1 . . . . 1 Alerts 3 | . . . . . . . . . . 1 . . . . . . . . . . . . . 2 . . Weapon Failures 5 | . . . . . . . . 1 . 1 . . . . . . . . . 1 . 1 . 1 . . Overload Shots 13 | . . . . . . . . . . 1 . . . . . . . . 5 . 3 . . . 4 . Effects 1 | . . . . . . . . . . . . . . . . . . . . . 1 . . . . . Short Circuit 1 | . . . . . . . . . . . . . . . . . . . . . 1 . . . . . Overflow Damage 1370 | . 169 28 . . 105 . . . 60 . 175 . . . . . . 89 158 161 40 56 117 177 . 35 Projectiles 858 | . 73 17 . . . . . . . . . . . . . . . 89 156 161 33 56 84 154 . 35 Explosions 456 | . 40 11 . . 105 . . . 60 . 175 . . . . . . . 2 . 7 . 33 23 . . Melee 56 | . 56 . . . . . . . . . . . . . . . . . . . . . . . . . Knockbacks . | . . . . . . . . . . . . . . . . . . . . . . . . . . . Impact . | . . . . . . . . . . . . . . . . . . . . . . . . . . . Kinetic . | . . . . . . . . . . . . . . . . . . . . . . . . . . . Secondary . | . . . . . . . . . . . . . . . . . . . . . . . . . . . Self-Inflicted Damage 748 | . 57 69 . . . . 69 . . . 65 82 . . 64 58 . 70 27 . . . 70 117 . . Shots 19 | . 1 2 . . . . 1 . . . 2 1 . . 1 3 . 1 1 . . . 1 5 . . Rammed . | . . . . . . . . . . . . . . . . . . . . . . . . . . . Targets Rammed . | . . . . . . . . . . . . . . . . . . . . . . . . . . . Kicked . | . . . . . . . . . . . . . . . . . . . . . . . . . . . Crushed . | . . . . . . . . . . . . . . . . . . . . . . . . . . . Highest Temperature 509 | . 352 270 282 182 216 282 257 234 100 302 274 290 122 171 265 118 336 363 240 66 230 166 88 216 482 509 Average Temperature 81 | . 78 116 132 56 63 65 114 56 36 91 71 66 55 49 76 43 170 112 40 25 80 54 33 54 210 121 Received Heat Transfer 1839 | . 156 55 260 24 124 54 27 51 24 60 218 81 . 138 . 156 . 81 119 81 9 . 3 100 . 18 Effects 22 | . 1 . . . . 1 2 . . . . 3 . . . . . 3 . . . . . . 9 3 Shutdowns 7 | . 1 . . . . . . . . . . . . . . . . . . . . . . . 4 2 Energy Bleed 3 | . . . . . . 1 . . . . . . . . . . . . . . . . . . 2 . Interference 8 | . . . . . . . 2 . . . . 3 . . . . . 3 . . . . . . . . Short Circuit 2 | . . . . . . . . . . . . . . . . . . . . . . . . . 2 . Damage (minor) 1 | . . . . . . . . . . . . . . . . . . . . . . . . . 1 . Damage (core) 1 | . . . . . . . . . . . . . . . . . . . . . . . . . . 1 Siege Activations 1 | . . . . . . . . . . . . . . . . . . . . . . . . . . 1 Total Turns 1 | . . . . . . . . . . . . . . . . . . . . . . . . . . 1 Longest Duration 1 | . . . . . . . . . . . . . . . . . . . . . . . . . . 1 Robots Corrupted . | . . . . . . . . . . . . . . . . . . . . . . . . . . . Combat Hostiles . | . . . . . . . . . . . . . . . . . . . . . . . . . . . Parts Fried 4 | . 1 . . . . . . . . . . . . . . . . . . 1 . . 2 . . . Impact Corruptions 1 | . 1 . . . . . . . . . . . . . . . . . . . . . . . . . Robots Melted 7 | . . . . . . . . . . . . . . . . . 1 2 4 . . . . . . . Combat Hostiles 7 | . . . . . . . . . . . . . . . . . 1 2 4 . . . . . . . Parts Melted 49 | . 10 2 . . . . . . . . 1 1 . 4 . . 4 5 10 6 . . 1 2 . 3 Heat Transferred 24598 | . 5034 999 . . . . . . 50 . 50 200 . . 160 . 1050 1300 3590 3475 1000 750 850 3200 1990 900 Parts Sabotaged . | . . . . . . . . . . . . . . . . . . . . . . . . . . . Parts Stolen 5 | . . . . . . . . . . . . . . . 1 4 . . . . . . . . . . Parts Stripped . | . . . . . . . . . . . . . . . . . . . . . . . . . . . Power Chain Reactions 3 | . . . . . . . . . . . . . . . . . . 2 . . . . 1 . . . Missiles Intercepted . | . . . . . . . . . . . . . . . . . . . . . . . . . . . Alert | -11 -10 -10 -10 -9 -8 -8 -8 -8 -8 -8 -8 -7 -7 -7 -7 -7 -7 -6 -6 -6 -6 -6 -6 -5 -5 -5 ------- Run | Jun Mat Min Exi Min Mat Gar Mat Gar Mat Gar Mat Fac Was Fac Low Low Dat Pro Fac Ext Cet Arc Hub Fac Was Fac Peak Influence 3780 | . 1162 799 . 417 2119 2971 1751 2739 1641 2852 3780 3353 1170 2038 . . . . 597 1205 1421 690 1181 775 235 565 Initial 1719 | . . 453 . . 162 1377 1448 1138 1335 936 1390 1719 1152 798 . . . . 8 241 674 568 241 578 212 21 Average 1161 | . 739 641 . 313 1275 2293 1552 2170 1490 2091 2335 2550 1146 1523 . . . . 214 555 1163 663 589 589 154 210 Maximum Alert Level 5 | . 4 3 . 2 5 5 5 5 5 5 5 5 4 5 . . . . 2 4 4 2 4 3 1 2 Low Security (%) 10 | 100 10 . . 23 1 . . . . . . . . . . . . . 57 6 . . . . 36 53 Level 1 11 | . 14 . . 47 4 . . . . . . . . . . . . . 13 37 . . 32 5 63 29 Level 2 19 | . 19 73 . 29 9 . . . . . . . . . . . . . 29 24 2 100 42 72 . 16 Level 3 10 | . 25 26 . . 13 . . . . 5 . . . 15 . . . . . 20 32 . 4 21 . . Level 4 21 | . 29 . . . 46 9 77 25 76 18 29 . 100 46 . . . . . 11 65 . 20 . . . Level 5 23 | . . . . . 22 90 . 74 23 75 15 100 . 38 . . . . . . . . . . . . High Security 3 | . . . . . 2 . 22 . . . 55 . . . . . . . . . . . . . . . Max Security . | . . . . . . . . . . . . . . . . . . . . . . . . . . . Sterilizations 1 | . . . . . . . . . . . 1 . . . . . . . . . . . . . . . Squads Dispatched 83 | . 10 . . . 8 . 2 . 5 . 9 9 . 12 . . . . 9 4 . . 2 8 . 5 Investigation 25 | . 8 . . . 5 . . . 2 . . 2 . 2 . . . . . 2 . . 1 2 . 1 Extermination 6 | . . . . . . . . . . . . 1 . 2 . . . . 1 . . . . 2 . . Reinforcement 16 | . 2 . . . 2 . 1 . 1 . 1 1 . . . . . . 3 1 . . 1 1 . 2 Assault 14 | . . . . . . . . . . . 8 2 . 1 . . . . 1 1 . . . 1 . . Garrison 18 | . . . . . 1 . 1 . 2 . . 3 . 7 . . . . 2 . . . . . . 2 Intercept 4 | . . . . . . . . . . . . . . . . . . . 2 . . . . 2 . . Searches Triggered . | . . . . . . . . . . . . . . . . . . . . . . . . . . . Construction Impeded 3 | . . . . . 1 . . . . . . . . . . . . . . 1 . . 1 . . . Haulers Reinforced 1 | . . . . . . . . . . . . . . . . . . . 1 . . . . . . . Active Scanning Responses . | . . . . . . . . . . . . . . . . . . . . . . . . . . . Cargo Convoy Interrupts . | . . . . . . . . . . . . . . . . . . . . . . . . . . . Stealth | -11 -10 -10 -10 -9 -8 -8 -8 -8 -8 -8 -8 -7 -7 -7 -7 -7 -7 -6 -6 -6 -6 -6 -6 -5 -5 -5 --------- Run | Jun Mat Min Exi Min Mat Gar Mat Gar Mat Gar Mat Fac Was Fac Low Low Dat Pro Fac Ext Cet Arc Hub Fac Was Fac Distress Signals 13 | . . . . . 2 . 1 . 1 . 3 1 . . . . . . . 1 2 . 1 . . 1 Communications Jammed 28 | . . . . . . . . . . . . 8 . . . . . . . . . . . . . 20 Distress Signals 28 | . . . . . . . . . . . . 8 . . . . . . . . . . . . . 20 Times Spotted 539 | . 32 27 8 10 42 27 8 22 7 40 73 39 5 29 3 10 4 13 27 39 16 4 11 27 5 11 Peak Tracking Total 16 | . 3 7 9 3 4 5 4 5 3 6 16 8 2 5 2 4 3 3 8 6 5 1 5 7 1 3 Tactical Retreats 12 | . 3 2 . . . 1 . . . 2 . . . . . 1 . 2 . . . . 1 . . . Traps | -11 -10 -10 -10 -9 -8 -8 -8 -8 -8 -8 -8 -7 -7 -7 -7 -7 -7 -6 -6 -6 -6 -6 -6 -5 -5 -5 ------- Run | Jun Mat Min Exi Min Mat Gar Mat Gar Mat Gar Mat Fac Was Fac Low Low Dat Pro Fac Ext Cet Arc Hub Fac Was Fac Traps Triggered 31 | . 3 . . . 3 2 . 3 . 5 2 5 . 2 . . . . . 4 . . . 1 . 1 Indirectly . | . . . . . . . . . . . . . . . . . . . . . . . . . . . Trap Hack Attempts . | . . . . . . . . . . . . . . . . . . . . . . . . . . . Triggered . | . . . . . . . . . . . . . . . . . . . . . . . . . . . Disarmed . | . . . . . . . . . . . . . . . . . . . . . . . . . . . Reprogrammed 8 | . . . . . . . . . . . . . . . . . . . 4 . . . . 4 . . Reused . | . . . . . . . . . . . . . . . . . . . . . . . . . . . Traps Extracted . | . . . . . . . . . . . . . . . . . . . . . . . . . . . Installed . | . . . . . . . . . . . . . . . . . . . . . . . . . . . Triggered . | . . . . . . . . . . . . . . . . . . . . . . . . . . . Machines | -11 -10 -10 -10 -9 -8 -8 -8 -8 -8 -8 -8 -7 -7 -7 -7 -7 -7 -6 -6 -6 -6 -6 -6 -5 -5 -5 ---------- Run | Jun Mat Min Exi Min Mat Gar Mat Gar Mat Gar Mat Fac Was Fac Low Low Dat Pro Fac Ext Cet Arc Hub Fac Was Fac Machines Disabled 308 | . 36 5 1 6 39 21 3 17 6 24 35 47 . 13 2 . . 1 9 10 1 1 17 8 . 6 Max in Single Turn 9 | . 3 2 1 2 3 2 2 3 2 3 2 4 . 2 2 . . 1 8 2 . . 9 5 . 1 Garrison Relay 17 | . . . . . . 8 . 4 . 5 . . . . . . . . . . . . . . . . Phase Generator 2 | . . . . . . . . 1 . 1 . . . . . . . . . . . . . . . . Network Hub 2 | . . . . . . . . . . . . . . . . . . . . . . . 2 . . . Machines Repaired . | . . . . . . . . . . . . . . . . . . . . . . . . . . . Machines Sabotaged . | . . . . . . . . . . . . . . . . . . . . . . . . . . . Overloaded Fab Kills . | . . . . . . . . . . . . . . . . . . . . . . . . . . . Hacking | -11 -10 -10 -10 -9 -8 -8 -8 -8 -8 -8 -8 -7 -7 -7 -7 -7 -7 -6 -6 -6 -6 -6 -6 -5 -5 -5 --------- Run | Jun Mat Min Exi Min Mat Gar Mat Gar Mat Gar Mat Fac Was Fac Low Low Dat Pro Fac Ext Cet Arc Hub Fac Was Fac Machines Accessed 102 | . 8 . . 1 10 4 1 4 2 3 3 10 . 10 1 . 4 . 6 4 3 1 3 16 . 8 Terminals 72 | . 6 . . 1 6 4 . 4 1 3 3 6 . 6 1 . . . 4 4 3 . 3 11 . 6 Fabricators 11 | . . . . . . . . . . . . 2 . 3 . . . . 1 . . . . 3 . 2 Repair Stations . | . . . . . . . . . . . . . . . . . . . . . . . . . . . Recycling Units 8 | . 2 . . . 1 . . . . . . 2 . 1 . . . . 1 . . . . 1 . . Scanalyzers 3 | . . . . . 2 . . . . . . . . . . . . . . . . . . 1 . . Garrison Access 3 | . . . . . 1 . 1 . 1 . . . . . . . . . . . . . . . . . Total Hacks 520 | . 31 . . 3 29 7 1 15 9 10 9 36 . 52 1 . 29 . 38 18 12 25 20 104 . 71 Successful 301 | . 21 . . 2 17 4 1 6 5 2 5 17 . 35 1 . 29 . 23 10 5 25 10 49 . 34 Failed 218 | . 9 . . 1 12 3 . 9 4 8 4 19 . 17 . . . . 15 8 7 . 10 55 . 37 Catastrophic 27 | . . . . . . . . 2 2 2 1 5 . 1 . . . . . 1 1 . . 7 . 5 Database Lockouts 1 | . 1 . . . . . . . . . . . . . . . . . . . . . . . . . Manual 155 | . 25 . 1 3 7 . . . . . 5 19 . 25 . . . 1 20 5 1 . 2 21 . 20 Terminals 389 | . 26 . . 3 23 7 . 15 6 10 9 30 . 37 1 . . . 31 18 12 . 20 79 . 62 Fabricators 39 | . . . . . . . . . . . . 2 . 12 . . . . 4 . . . . 12 . 9 Repair Stations . | . . . . . . . . . . . . . . . . . . . . . . . . . . . Recycling Units 22 | . 5 . . . 2 . . . . . . 4 . 3 . . . . 3 . . . . 5 . . Scanalyzers 10 | . . . . . 2 . . . . . . . . . . . . . . . . . . 8 . . Garrison Access 6 | . . . . . 2 . 1 . 3 . . . . . . . . . . . . . . . . . Terminal Hacks 233 | . 9 . . 2 10 4 . 6 4 2 4 11 . 24 1 . 29 . 16 10 5 25 9 35 . 27 Record 52 | . . . . 1 2 . . . . . . . . 1 1 . 11 . . . 4 25 . 3 . 4 Part Schematic 23 | . . . . . . . . . . . . 1 . 2 . . 10 . . 1 . . 1 5 . 3 Robot Schematic 6 | . . . . . . . . . . . . . . . . . 5 . . . . . . 1 . . Robot Analysis 13 | . 5 . . 1 1 . . . . . . 2 . 4 . . . . . . . . . . . . Prototype ID Bank 22 | . 1 . . . 1 . . . 1 . 1 2 . 3 . . 3 . 3 . . . 2 3 . 2 Open Door 5 | . . . . . . 1 . 1 . . . . . . . . . . . 2 1 . . . . . Open DSF 2 | . . . . . . . . . . . . . . . . . . . . . . . . 2 . . Level Access Points 1 | . . . . . . . . . . . . 1 . . . . . . . . . . . . . . Branch Access Points 4 | . . . . . . . . . . . . . . 1 . . . . 1 1 . . . 1 . . Emergency Access Points 15 | . 2 . . . 2 1 . 1 . . . 1 . 2 . . . . 1 . . . 2 3 . . Terminal Index 1 | . 1 . . . . . . . . . . . . . . . . . . . . . . . . . Fabricator Index 3 | . . . . . . . . . . . . . . 1 . . . . 2 . . . . . . . Recycling Unit Index 1 | . . . . . . . . . . . . . . . . . . . . . . . 1 . . . Scanalyzer Index 1 | . . . . . . . . . . . . . . . . . . . 1 . . . . . . . Garrison Index 2 | . . . . . . . . . . . . . . . . . . . 1 . . . . 1 . . Alert Level 10 | . . . . . . . . . 1 . 1 . . 2 . . . . . 1 . . 1 2 . 2 Unreport Threat 22 | . . . . . . . . . 2 . 1 3 . 3 . . . . 2 3 . . . 5 . 3 Locate Traps 5 | . . . . . . . . . . . . . . . . . . . . . . . . 2 . 3 Reprogram Traps 3 | . . . . . . . . . . . . . . . . . . . 2 . . . . 1 . . Dispatch Records 1 | . . . . . . . . . . . . . . . . . . . . . . . . 1 . . Surveillance Status 2 | . . . . . . . . . . . . . . 1 . . . . . . . . . . . 1 Transport Status 1 | . . . . . . . . . . . . . . . . . . . . . . . . . . 1 Reinforcement Status 1 | . . . . . . . . . . . . . . . . . . . . . . . . . . 1 Assault Status 1 | . . . . . . . . . . . . . . . . . . . . . . . . . . 1 Recall Investigation 1 | . . . . . . . . . . . . . . . . . . . . . . . . 1 . . Recall Reinforcements 1 | . . . . . . . . . . . . . . . . . . . . . . . . 1 . . Hauler Manifests 4 | . . . . . 1 . . . . . . . . 1 . . . . . 1 . . . . . 1 Registered Components 3 | . . . . . . . . . . . . . . 1 . . . . . 1 . . 1 . . . Registered Prototypes 5 | . . . . . 1 . . . . . 1 . . 1 . . . . 1 . . . . . . 1 Zone Layout 14 | . . . . . 2 . . . . . . 1 . 1 . . . . 2 . . . 1 3 . 4 Garrison Registry 2 | . . . . . . 1 . . . 1 . . . . . . . . . . . . . . . . Patrol Navigation 3 | . . . . . . 1 . 2 . . . . . . . . . . . . . . . . . . Security Stations 3 | . . . . . . . . 2 . 1 . . . . . . . . . . . . . . . . Fabricator Hacks 8 | . . . . . . . . . . . . . . 2 . . . . 1 . . . . 3 . 2 Network Status 3 | . . . . . . . . . . . . . . 1 . . . . . . . . . 1 . 1 Load Schematic 2 | . . . . . . . . . . . . . . . . . . . . . . . . 1 . 1 Build 3 | . . . . . . . . . . . . . . 1 . . . . 1 . . . . 1 . . Repair Station Hacks . | . . . . . . . . . . . . . . . . . . . . . . . . . . . Recycling Unit Hacks 8 | . 1 . . . 1 . . . . . . 2 . 1 . . . . 2 . . . . 1 . . Report Inventory 6 | . 1 . . . 1 . . . . . . 1 . 1 . . . . 1 . . . . 1 . . Retrieve Matter 1 | . . . . . . . . . . . . . . . . . . . 1 . . . . . . . Retrieve Components 1 | . . . . . . . . . . . . 1 . . . . . . . . . . . . . . Scanalyzer 4 | . . . . . . . . . . . . . . . . . . . . . . . . 4 . . Insert Component 2 | . . . . . . . . . . . . . . . . . . . . . . . . 2 . . Analyze 2 | . . . . . . . . . . . . . . . . . . . . . . . . 2 . . Garrison Access Hacks 3 | . . . . . 1 . 1 . 1 . . . . . . . . . . . . . . . . . Unlock Access 3 | . . . . . 1 . 1 . 1 . . . . . . . . . . . . . . . . . Unauthorized Hacks 45 | . 11 . . . 5 . . . . . 1 4 . 8 . . . . 4 . . . 1 6 . 5 Terminals 24 | . 8 . . . 2 . . . . . 1 2 . 2 . . . . 3 . . . 1 2 . 3 Botnet 20 | . 4 . . . 2 . . . . . 1 2 . 2 . . . . 3 . . . 1 2 . 3 Sabotage 1 | . 1 . . . . . . . . . . . . . . . . . . . . . . . . . Search 3 | . 3 . . . . . . . . . . . . . . . . . . . . . . . . . Fabricators 9 | . . . . . . . . . . . . 1 . 5 . . . . . . . . . 1 . 2 Report 2 | . . . . . . . . . . . . . . 2 . . . . . . . . . . . . Fabnet 7 | . . . . . . . . . . . . 1 . 3 . . . . . . . . . 1 . 2 Repair Stations . | . . . . . . . . . . . . . . . . . . . . . . . . . . . Recycling Units 10 | . 3 . . . 1 . . . . . . 1 . 1 . . . . 1 . . . . 3 . . Monitor 2 | . 1 . . . . . . . . . . . . . . . . . . . . . . 1 . . Reject 2 | . . . . . . . . . . . . . . . . . . . 1 . . . . 1 . . Mask 2 | . 1 . . . . . . . . . . . . . . . . . . . . . . 1 . . Tunnel 4 | . 1 . . . 1 . . . . . . 1 . 1 . . . . . . . . . . . . Scanalyzers 2 | . . . . . 2 . . . . . . . . . . . . . . . . . . . . . Extract 2 | . . . . . 2 . . . . . . . . . . . . . . . . . . . . . Garrison Access . | . . . . . . . . . . . . . . . . . . . . . . . . . . . Data Cores Recovered 8 | . 1 . . . 1 . 1 . . . . 1 . 1 . . . . 1 . . . 1 . . 1 Used 4 | . 1 . . . 1 . . . . . . 1 . . . . . . . . . . 1 . . . Hacking Detections 81 | . 8 . . 1 7 3 . 3 2 3 3 8 . 9 . . . . 5 3 2 . 3 14 . 7 Full Trace Events 18 | . 3 . . . 2 1 . 1 2 3 . 1 . . . . . . . 1 . . 1 2 . 1 Feedback Events 4 | . . . . . . . . 1 . 1 . . . . . . . . . . . . 1 . . 1 Corruption 3 | . . . . . . . . . . 1 . . . . . . . . . . . . 1 . . 1 Hackware Fried 1 | . . . . . . . . 1 . . . . . . . . . . . . . . . . . . Feedback Blocked . | . . . . . . . . . . . . . . . . . . . . . . . . . . . Robot Schematics Acquired 6 | . . . . . . . . . . . . . . . . . 5 . . . . . . 1 . . Robots Built . | . . . . . . . . . . . . . . . . . . . . . . . . . . . Authchips . | . . . . . . . . . . . . . . . . . . . . . . . . . . . Time . | . . . . . . . . . . . . . . . . . . . . . . . . . . . Total Robot Build Rating . | . . . . . . . . . . . . . . . . . . . . . . . . . . . Part Schematics Acquired 35 | . . . . . 10 . . . . . . 1 . 2 . . 10 . . 1 . . 1 7 . 3 Parts Built 4 | . . . . . . . . . . . . . . 2 . . . . 1 . . . . 1 . . Authchips . | . . . . . . . . . . . . . . . . . . . . . . . . . . . Time 259 | . . . . . . . . . . . . . . 95 . . . . 106 . . . . 58 . . Total Part Build Rating 23 | . . . . . . . . . . . . . . 10 . . . . 6 . . . . 7 . . Parts Repaired . | . . . . . . . . . . . . . . . . . . . . . . . . . . . Time . | . . . . . . . . . . . . . . . . . . . . . . . . . . . Parts Recycled . | . . . . . . . . . . . . . . . . . . . . . . . . . . . Recycled Matter . | . . . . . . . . . . . . . . . . . . . . . . . . . . . Retrieved Matter . | . . . . . . . . . . . . . . . . . . . . . . . . . . . Retrieved Components 2 | . . . . . . . . . . . . 2 . . . . . . . . . . . . . . Parts Scanalyzed 2 | . . . . . . . . . . . . . . . . . . . . . . . . 2 . . Part Schematics Acquired 2 | . . . . . . . . . . . . . . . . . . . . . . . . 2 . . Parts Damaged . | . . . . . . . . . . . . . . . . . . . . . . . . . . . Bothacking | -11 -10 -10 -10 -9 -8 -8 -8 -8 -8 -8 -8 -7 -7 -7 -7 -7 -7 -6 -6 -6 -6 -6 -6 -5 -5 -5 ------------ Run | Jun Mat Min Exi Min Mat Gar Mat Gar Mat Gar Mat Fac Was Fac Low Low Dat Pro Fac Ext Cet Arc Hub Fac Was Fac Used RIF Installer . | . . . . . . . . . . . . . . . . . . . . . . . . . . . Robots Hacked 17 | . . . . . . . . . . . . . . . . . . 2 2 2 6 . 4 1 . . Non-combat . | . . . . . . . . . . . . . . . . . . . . . . . . . . . Combat 17 | . . . . . . . . . . . . . . . . . . 2 2 2 6 . 4 1 . . Robot Hacks Applied . | . . . . . . . . . . . . . . . . . . . . . . . . . . . Relay Couplers Released 33 | . . . . . . 15 . 6 . 12 . . . . . . . . . . . . . . . . Machine Destruction 31 | . . . . . . 15 . 6 . 10 . . . . . . . . . . . . . . . . Programmers 2 | . . . . . . . . . . 2 . . . . . . . . . . . . . . . . Fabnet Peak Effective % 12 | . . . . . . . . . . . . . . . . . . 12 12 12 12 12 12 4 4 4 Autooverrided 17 | . . . . . . . . . . . . . . . . . . 2 2 2 6 . 4 1 . . Robots Rewired 27 | . . . . . . . . 10 . 2 . . . . . . . . . 15 . . . . . . Allies Hacked . | . . . . . . . . . . . . . . . . . . . . . . . . . . . Hacks Repelled . | . . . . . . . . . . . . . . . . . . . . . . . . . . . Allies | -11 -10 -10 -10 -9 -8 -8 -8 -8 -8 -8 -8 -7 -7 -7 -7 -7 -7 -6 -6 -6 -6 -6 -6 -5 -5 -5 -------- Run | Jun Mat Min Exi Min Mat Gar Mat Gar Mat Gar Mat Fac Was Fac Low Low Dat Pro Fac Ext Cet Arc Hub Fac Was Fac Total Allies 98 | . . 2 . 1 . 1 . 11 . 2 . . 19 . . . . 2 2 24 11 . 4 1 18 . Largest Group 19 | . . 2 1 1 1 1 . 7 3 2 2 . 19 11 2 . . 1 1 17 19 17 11 1 18 18 Highest-Rated Group 978 | . . 39 8 31 31 20 . 163 76 56 56 . 465 331 49 . . 41 29 621 978 917 563 29 656 656 Highest-Rated Ally 159 | . . 31 8 31 31 20 . 31 31 31 31 . 35 35 25 . . 41 29 159 152 140 96 29 50 50 Total Orders 3 | . . . . . . . . . . . . . . . . . . . . . 2 . 1 . . . STAY 2 | . . . . . . . . . . . . . . . . . . . . . 1 . 1 . . . FOLLOW 1 | . . . . . . . . . . . . . . . . . . . . . 1 . . . . . Ally Attacks 621 | . . 9 . . 8 1 . 32 20 6 4 . 88 113 . . . 3 . 119 99 12 46 6 . 55 Total Damage 15790 | . . 62 . . 106 46 . 488 333 42 64 . 2523 2055 . . . 46 . 2951 2584 398 2327 57 . 1708 Kills 102 | . . 2 . . . . . 8 7 1 1 . 7 15 . . . . . 22 15 2 11 . . 11 Allies Corrupted 5 | . . . . . . . . . . . . . . 1 . . . . . . . . 2 . . 2 Allies Melted 1 | . . . . . 1 . . . . . . . . . . . . . . . . . . . . . Intel | -11 -10 -10 -10 -9 -8 -8 -8 -8 -8 -8 -8 -7 -7 -7 -7 -7 -7 -6 -6 -6 -6 -6 -6 -5 -5 -5 ------- Run | Jun Mat Min Exi Min Mat Gar Mat Gar Mat Gar Mat Fac Was Fac Low Low Dat Pro Fac Ext Cet Arc Hub Fac Was Fac Robot Analysis Total 144 | . 5 . . 1 1 . . . . . . 2 . 4 . . 131 . . . . . . . . . Derelict Logs Recovered 7 | . . 1 . 1 . . . . . . . . . . 2 . . 3 . . . . . . . . Drone Launches . | . . . . . . . . . . . . . . . . . . . . . . . . . . . Drone Recoveries . | . . . . . . . . . . . . . . . . . . . . . . . . . . . Exploration | -11 -10 -10 -10 -9 -8 -8 -8 -8 -8 -8 -8 -7 -7 -7 -7 -7 -7 -6 -6 -6 -6 -6 -6 -5 -5 -5 ------------- Run | Jun Mat Min Exi Min Mat Gar Mat Gar Mat Gar Mat Fac Was Fac Low Low Dat Pro Fac Ext Cet Arc Hub Fac Was Fac Turns Passed 19586 | 5 1967 511 214 325 620 494 59 965 157 1422 870 669 387 983 1243 951 201 1641 1117 857 670 365 345 1298 626 624 Spaces Moved 13816 | 3 1069 495 224 484 667 697 76 997 110 984 688 911 300 592 892 613 96 996 645 461 338 108 182 624 236 328 Core 115 | . 1 . 1 . 113 . . . . . . . . . . . . . . . . . . . . . Treads 1567 | . . . . . . . . . . . . . . . . . . 68 . . 97 108 106 624 236 328 Legs 6910 | 3 201 . 112 484 527 697 76 997 110 984 688 911 96 . 891 133 . . . . . . . . . . Wheels 4641 | . 867 50 . . . . . . . . . . 204 592 1 480 96 928 645 461 241 . 76 . . . Hover 556 | . . 445 111 . . . . . . . . . . . . . . . . . . . . . . . Flight 27 | . . . . . 27 . . . . . . . . . . . . . . . . . . . . . Fastest Speed 26 | 120 90 77 45 45 26 45 45 45 125 45 54 54 54 130 130 130 130 115 115 115 115 240 150 160 160 166 Average Speed 107 | 120 107 78 77 45 62 45 45 61 125 124 100 54 105 130 136 131 130 130 127 123 163 240 155 160 195 168 Slowest Speed 350 | 120 350 155 350 45 150 45 45 125 125 125 125 125 130 130 250 136 130 240 130 130 240 240 160 160 240 170 Overloaded Moves 6553 | . . . 35 484 527 697 76 922 110 984 688 911 96 . 890 133 . . . . . . . . . . Propulsion Burnouts . | . . . . . . . . . . . . . . . . . . . . . . . . . . . Robots Hopped . | . . . . . . . . . . . . . . . . . . . . . . . . . . . Cave-ins Triggered 3 | . . . . . . . . . . . . . . 1 . . . . . . . . . 1 . 1 Exploration Rate (%) 65 | 2 99 98 42 97 78 84 14 98 20 96 67 37 95 27 98 80 80 98 25 74 89 87 35 33 88 17 Regions Visited 26 Branch Regions 11 Pre-discovered Areas 31 | . 1 1 . . 1 . . . . . . 1 . 1 1 . 25 . . . . . . . . . Known Exits Taken 14 | . 1 1 1 1 1 . 1 . 1 . 1 . . 1 1 1 . 1 1 1 . . . . . . Unknown Exits Taken 5 | 1 . . . . . . . . . . . . . . . . 1 . . . 1 1 1 . . . Scrap Searched 13 | . . 1 . 2 . . . . . . . . . . 3 5 . 2 . . . . . . . . Spaces Dug 656 | . 3 5 . 17 47 . 39 . 52 . 82 162 . 51 15 17 . 8 63 5 5 . 3 66 . 16 Terrain Destroyed 2834 | . 247 81 3 70 235 . 56 79 84 53 314 527 6 127 38 125 24 33 172 32 47 2 306 146 7 20 Melee 3 | . 3 . . . . . . . . . . . . . . . . . . . . . . . . . Projectile 1146 | . 2 2 3 70 194 . 20 . 12 . 200 213 6 102 27 16 . 19 98 28 10 2 12 83 7 20 AOE 1685 | . 242 79 . . 41 . 36 79 72 53 114 314 . 25 11 109 24 14 74 4 37 . 294 63 . . Terrain Rammed . | . . . . . . . . . . . . . . . . . . . . . . . . . . . Walls Destroyed . | . . . . . . . . . . . . . . . . . . . . . . . . . . . Machines Disabled . | . . . . . . . . . . . . . . . . . . . . . . . . . . . Actions | -11 -10 -10 -10 -9 -8 -8 -8 -8 -8 -8 -8 -7 -7 -7 -7 -7 -7 -6 -6 -6 -6 -6 -6 -5 -5 -5 --------- Run | Jun Mat Min Exi Min Mat Gar Mat Gar Mat Gar Mat Fac Was Fac Low Low Dat Pro Fac Ext Cet Arc Hub Fac Was Fac Total 17835 | 4 1575 564 266 598 904 898 103 1364 131 1201 901 1120 377 805 926 707 154 1232 847 688 437 206 224 845 380 378 Wait 1499 | . 296 17 5 59 40 55 8 132 8 51 50 28 14 107 2 6 27 130 79 37 54 84 14 87 91 18 Move 13791 | 2 1068 494 223 483 667 696 76 996 109 982 687 911 299 590 891 612 95 995 644 460 337 107 181 623 235 328 Hop . | . . . . . . . . . . . . . . . . . . . . . . . . . . . Pick Up 74 | . 8 2 3 1 2 1 . 4 . 2 1 8 2 1 4 6 4 3 5 2 . 2 3 9 1 . Fast Attach 117 | 1 15 2 5 4 11 6 2 7 . 3 3 6 4 . 1 5 2 2 9 1 6 2 1 2 14 3 Attach 41 | . 3 1 . 1 3 . . 1 . 1 . 1 . . 3 10 3 2 1 . 1 1 4 4 1 . Detach 16 | . . . 1 1 3 . . 2 . 1 . 2 2 . . 2 . . 1 . . . . 1 . . Swap 35 | . 5 2 . . 2 1 . . . . 1 6 2 . . . 2 1 3 . 1 . . 3 . 6 Drop 158 | 1 12 4 10 5 6 6 2 10 . 6 2 13 10 . 5 7 6 3 15 1 4 2 4 11 11 2 Fire 1312 | . 130 30 11 35 136 90 13 72 7 92 135 130 15 68 17 13 14 35 70 44 14 6 16 71 27 21 Melee 95 | . 19 . . . . . . . . . . . . . . 37 1 38 . . . . . . . . Ram . | . . . . . . . . . . . . . . . . . . . . . . . . . . . Kick . | . . . . . . . . . . . . . . . . . . . . . . . . . . . Crush . | . . . . . . . . . . . . . . . . . . . . . . . . . . . Escape Stasis 57 | . . . . . . 2 . 4 . 25 . . . 17 . . . . . 8 . . . 1 . . Rewire 201 | . . . . . . . . 107 . 7 . . . . . . . . . 87 . . . . . . Trap . | . . . . . . . . . . . . . . . . . . . . . . . . . . . Miscellaneous 439 | . 19 12 8 9 34 41 2 29 7 31 22 15 29 22 3 9 . 23 20 48 20 2 1 33 . . Route ------- -11/Junkyard -10/Materials (discovered 4 exits: *Mat x3 / *Min) -10/Mines (discovered 3 exits: *Mat x2 / *Exi) -10/Exiles -9/Mines (discovered 2 exits: *Mat x2) -8/Materials (discovered 3 exits: *Fac x2 / Gar) -8/Garrison (discovered 3 exits: *Mat x3) -8/Materials -8/Garrison (discovered 3 exits: *Mat x3) -8/Materials -8/Garrison (discovered 3 exits: *Mat x3) -8/Materials (discovered 2 exits: *Fac x2) -7/Factory (discovered 5 exits: *Fac x4 / *Low) -7/Waste -7/Factory (discovered 3 exits: *Fac / *Low x2) -7/Lower Caves -7/Lower Caves -7/Data Miner -6/Proximity Caves -6/Factory (discovered 4 exits: Low x2 / *Ext x2) -6/Extension (discovered 2 exits: *Fac / *Cet) -6/Cetus (discovered 3 exits: *Fac x2 / *Arc) -6/Archives (discovered 3 exits: *Fac / *Hub x2) -6/Hub_04(d) (discovered 2 exits: *Fac x2) -5/Factory (discovered 3 exits: [*Fac] / *Upp x2) -5/Waste -5/Factory (discovered 1 exit: [*Fac]) History --------- Turn | Location | Event 2 | -11/Junkyard | Discovered new exit (range 1) 6 | -11/Junkyard | Entered Materials 6 | -10/Materials | Upgraded with Utility slot (x1) 6 | -10/Materials | Upgraded with Weapon slot (x1) 169 | -10/Materials | Discovered new exit (range 8) 312 | -10/Materials | Build established: Mutant 368 | -10/Materials | Reached level 2 393 | -10/Materials | Upgraded with Utility slot (x1) 393 | -10/Materials | Upgraded with Weapon slot (x1) 447 | -10/Materials | Discovered new exit (range 7) 793 | -10/Materials | Reached level 3 809 | -10/Materials | Upgraded with Weapon slot (x1) 819 | -10/Materials | Central database locked down 922 | -10/Materials | Discovered new exit (range 6) 957 | -10/Materials | Reached level 4 1292 | -10/Materials | Upgraded with Utility slot (x1) 1459 | -10/Materials | Discovered new exit (range 4) 1461 | -10/Materials | Identified exit to Materials 1539 | -10/Materials | Upgraded with Propulsion slot (x1) 1625 | -10/Materials | Reached level 5 1852 | -10/Materials | Build established: Scavenger-Assassin 1971 | -10/Materials | Identified exit to Mines 1972 | -10/Materials | Upgraded with Utility slot (x1) 1973 | -10/Materials | Entered Mines 1994 | -10/Mines | Assembled infested the area 2058 | -10/Mines | Destroyed 11 combat bots 2089 | -10/Mines | Core integrity fell below 50% 2102 | -10/Mines | Discovered exit to Materials (range 7) 2296 | -10/Mines | Discovered exit to Materials (range 9) 2346 | -10/Mines | Build established: Scavenger-Scout 2405 | -10/Mines | Found a hidden stash of uninstalled traps 2480 | -10/Mines | Deemed a non-threat by the Exiles lab entrance 2480 | -10/Mines | Discovered new exit (range 5) 2484 | -10/Mines | Identified exit to Exiles 2484 | -10/Mines | Entered Exiles 2484 | -10/Exiles | Accompanied by 1 ally 2486 | -10/Exiles | Reached level 6 2497 | -10/Exiles | Discovered new exit (range 16) 2506 | -10/Exiles | Met 8R-AWN 2518 | -10/Exiles | Met EX-HEX 2540 | -10/Exiles | Met EX-BIN 2549 | -10/Exiles | Aligned with FarCom system 2550 | -10/Exiles | Given EX-Vault access code 2567 | -10/Exiles | Opened EX-Vault 2572 | -10/Exiles | Found Prototype Ballistic Gun 2572 | -10/Exiles | Identified XL Autogun Array 2578 | -10/Exiles | Found Prototype Leg 2578 | -10/Exiles | Identified Potential Leg 2580 | -10/Exiles | Found Potential Leg 2584 | -10/Exiles | Found Prototype Processor 2602 | -10/Exiles | Warned to stay clear of 0b10 Research branches 2657 | -10/Exiles | Attacked by the Exiles 2665 | -10/Exiles | Destroyed 8R-AWN 2671 | -10/Exiles | Found Prototype Device 2671 | -10/Exiles | Identified AS-neutralizer No. 17b 2676 | -10/Exiles | Found Prototype Ballistic Gun 2698 | -10/Exiles | Identified exit to Mines 2698 | -10/Exiles | Stole three prototypes: XL Autogun Array, Potential Leg, Modified TNC 2698 | -10/Exiles | Entered Mines 2718 | -9/Mines | Identified Modified TNC 2720 | -9/Mines | Identified 8R-AWN's Boregun 2733 | -9/Mines | Discovered new exit (range 6) 2734 | -9/Mines | Learned Materials garrison access intel 2776 | -9/Mines | Reached level 7 2894 | -9/Mines | Discovered new exit (range 17) 2904 | -9/Mines | Received a Rocket Launcher from a helpful Derelict 2912 | -9/Mines | Identified exit to Materials 2951 | -9/Mines | Received a Mining Laser from a helpful Derelict 3023 | -9/Mines | Entered Materials 3023 | -8/Materials | Accompanied by 1 ally 3023 | -8/Materials | Garrison activated, responded to threat 3024 | -8/Materials | Loaded intel: 1 garrison access location 3024 | -8/Materials | Core integrity fell below 50% 3025 | -8/Materials | Reached level 8 3026 | -8/Materials | Upgraded with Utility slot (x1) 3052 | -8/Materials | Reached level 9 3056 | -8/Materials | Upgraded with Utility slot (x1) 3076 | -8/Materials | Build established: Scavenger-Gunner 3098 | -8/Materials | Destroyed 8 combat bots 3104 | -8/Materials | Reached level 10 3106 | -8/Materials | Discovered new exit (range 17) 3168 | -8/Materials | Upgraded with Propulsion slot (x1) 3185 | -8/Materials | Reached level 11 3201 | -8/Materials | Upgraded with Propulsion slot (x1) 3432 | -8/Materials | Reached level 12 3449 | -8/Materials | Discovered new exit (range 16) 3626 | -8/Materials | Reached level 13 3630 | -8/Materials | High security lockdown imminent 3643 | -8/Materials | Identified exit to Garrison 3643 | -8/Materials | Entered Garrison 3658 | -8/Garrison | Triggered checkpoint 3689 | -8/Garrison | Garrison Relay disabled 3690 | -8/Garrison | Garrison Relay disabled 3702 | -8/Garrison | Garrison Relay disabled 3705 | -8/Garrison | Garrison Relay disabled 3733 | -8/Garrison | Destroyed 12 combat bots 3757 | -8/Garrison | Discovered new exit (range 12) 3763 | -8/Garrison | Triggered checkpoint 3777 | -8/Garrison | Garrison Relay disabled 3781 | -8/Garrison | Discovered new exit (range 36) 3781 | -8/Garrison | Discovered new exit (range 68) 3781 | -8/Garrison | Discovered new exit (range 25) 3796 | -8/Garrison | Reached level 14 3810 | -8/Garrison | Triggered checkpoint 3846 | -8/Garrison | Triggered checkpoint 3849 | -8/Garrison | Garrison Relay disabled 3869 | -8/Garrison | Rescued a captive Derelict 3893 | -8/Garrison | Triggered checkpoint 3932 | -8/Garrison | Triggered checkpoint 3942 | -8/Garrison | Upgraded with Power slot (x1) 3988 | -8/Garrison | Triggered checkpoint 3995 | -8/Garrison | Garrison Relay disabled 4101 | -8/Garrison | Triggered checkpoint 4121 | -8/Garrison | Garrison Relay disabled 4125 | -8/Garrison | Build established: Gunner 4136 | -8/Garrison | Identified exit to Materials 4137 | -8/Garrison | Entered Materials 4183 | -8/Materials | High security lockdown imminent 4189 | -8/Materials | Garrison activated, responded to threat 4196 | -8/Materials | Identified exit to Garrison 4196 | -8/Materials | Entered Garrison 4212 | -8/Garrison | Triggered checkpoint 4220 | -8/Garrison | Garrison Relay disabled 4220 | -8/Garrison | Reached level 15 4232 | -8/Garrison | Triggered checkpoint 4235 | -8/Garrison | Destroyed 8 combat bots 4243 | -8/Garrison | Upgraded with Utility slot (x1) 4303 | -8/Garrison | Garrison Relay disabled 4304 | -8/Garrison | Triggered checkpoint 4391 | -8/Garrison | Discovered new exit (range 11) 4445 | -8/Garrison | Triggered checkpoint 4480 | -8/Garrison | Triggered checkpoint 4504 | -8/Garrison | Destroyed 12 combat bots 4507 | -8/Garrison | Rescued a captive Derelict 4513 | -8/Garrison | Garrison Relay disabled 4517 | -8/Garrison | Triggered checkpoint 4546 | -8/Garrison | Discovered new exit (range 3) 4547 | -8/Garrison | Identified exit to Materials 4579 | -8/Garrison | Phase Generator disabled 4701 | -8/Garrison | Build established: Commander-Gunner 4828 | -8/Garrison | Triggered checkpoint 4898 | -8/Garrison | Learned Materials security intel 4898 | -8/Garrison | Learned Materials security intel 4898 | -8/Garrison | Adv. System Shield fried by hacking feedback 4960 | -8/Garrison | Discovered exit to Materials (range 13) 5014 | -8/Garrison | Triggered checkpoint 5073 | -8/Garrison | Garrison Relay disabled 5161 | -8/Garrison | Entered Materials 5161 | -8/Materials | Accompanied by 3 allies 5311 | -8/Materials | Identified exit to Garrison 5318 | -8/Materials | Entered Garrison 5318 | -8/Garrison | Accompanied by 1 ally 5318 | -8/Garrison | Reached level 16 5324 | -8/Garrison | Build established: Gunner 5375 | -8/Garrison | Garrison Relay disabled 5377 | -8/Garrison | Triggered checkpoint 5400 | -8/Garrison | Garrison Relay disabled 5487 | -8/Garrison | Triggered checkpoint 5538 | -8/Garrison | Triggered checkpoint 5586 | -8/Garrison | Triggered checkpoint 5602 | -8/Garrison | Triggered checkpoint 5621 | -8/Garrison | Learned Materials security intel 5634 | -8/Garrison | Garrison Relay disabled 5743 | -8/Garrison | Discovered new exit (range 12) 5799 | -8/Garrison | Build established: Hacker-Gunner 5844 | -8/Garrison | Triggered checkpoint 5929 | -8/Garrison | Discovered new exit (range 74) 5929 | -8/Garrison | Discovered new exit (range 71) 5929 | -8/Garrison | Discovered new exit (range 24) 5985 | -8/Garrison | Phase Generator disabled 6016 | -8/Garrison | Destroyed 7 combat bots 6112 | -8/Garrison | Triggered checkpoint 6121 | -8/Garrison | Garrison Relay disabled 6187 | -8/Garrison | Triggered checkpoint 6226 | -8/Garrison | Triggered checkpoint 6254 | -8/Garrison | Garrison Relay disabled 6316 | -8/Garrison | Triggered checkpoint 6644 | -8/Garrison | Attempted to access garrison exit controls, blocked by remote lockdown 6740 | -8/Garrison | Entered Materials 6740 | -8/Materials | Accompanied by 2 allies 7130 | -8/Materials | High security lockdown imminent 7201 | -8/Materials | Discovered new exit (range 17) 7210 | -8/Materials | High security lockdown engaged 7313 | -8/Materials | Reached level 17 7320 | -8/Materials | Upgraded with Propulsion slot (x1) 7432 | -8/Materials | Sterilization system engaged 7432 | -8/Materials | Non-combat units ordered to evacuate 7451 | -8/Materials | Destroyed 36 combat bots 7482 | -8/Materials | Discovered new exit (range 16) 7532 | -8/Materials | Combat units ordered to evacuate 7610 | -8/Materials | Identified exit to Factory 7610 | -8/Materials | Entered Factory 7664 | -7/Factory | Discovered new exit (range 2) 7665 | -7/Factory | Identified exit to Lower Caves 7766 | -7/Factory | Garrison activated, responded to threat 7814 | -7/Factory | Found Prototype Launcher 7814 | -7/Factory | Identified Rocket Array 7820 | -7/Factory | Found Rocket Array 7866 | -7/Factory | Destroyed 7 combat bots 7945 | -7/Factory | Reached level 18 8010 | -7/Factory | First assault squad dispatched 8012 | -7/Factory | Discovered new exit (range 6) 8194 | -7/Factory | Identified exit to Factory 8279 | -7/Factory | Sucked down chute 8279 | -7/Factory | Entered Waste 8281 | -7/Waste | Destroyed 7 combat bots 8294 | -7/Waste | Warlord forces began an assault 8332 | -7/Waste | Spotted C-40 Crusher 8335 | -7/Waste | Destroyed C-40 Crusher 8358 | -7/Waste | Found Damper Plating 8377 | -7/Waste | Spotted C-40 Crusher 8381 | -7/Waste | Destroyed C-40 Crusher 8382 | -7/Waste | Spotted C-40 Crusher 8385 | -7/Waste | Destroyed C-40 Crusher 8392 | -7/Waste | Spotted C-40 Crusher 8394 | -7/Waste | Destroyed C-40 Crusher 8396 | -7/Waste | Spotted C-40 Crusher 8405 | -7/Waste | Destroyed C-40 Crusher 8591 | -7/Waste | Discovered new exit (range 12) 8666 | -7/Waste | Entered Factory 8666 | -7/Factory | Accompanied by 11 allies 8787 | -7/Factory | Discovered exit to Factory (range 14) 8910 | -7/Factory | Garrison activated, responded to threat 9066 | -7/Factory | First assault squad dispatched 9075 | -7/Factory | Reached level 19 9142 | -7/Factory | Destroyed 8 combat bots 9309 | -7/Factory | Crushed by falling debris 9378 | -7/Factory | Garrison activated, responded to threat 9555 | -7/Factory | Fabricated Adv. Signal Interpreter (x2) 9649 | -7/Factory | Entered Lower Caves 9649 | -7/Lower Caves | Accompanied by 2 allies 9649 | -7/Lower Caves | Spotted QC-BSY(f) 9649 | -7/Lower Caves | Spotted PD-0LC(f) 9650 | -7/Lower Caves | Encountered a Master Thief 9650 | -7/Lower Caves | Encountered a Master Thief 9650 | -7/Lower Caves | Potential Leg stolen by Master Thief 9650 | -7/Lower Caves | Destroyed QC-BSY(f) 9651 | -7/Lower Caves | Destroyed PD-0LC(f) 9656 | -7/Lower Caves | Met a Warlord Commander 9657 | -7/Lower Caves | Learned location of Warlord (-5) 9683 | -7/Lower Caves | Found Encrypted Comm Array 10029 | -7/Lower Caves | Learned Factory terminal intel 10042 | -7/Lower Caves | Learned Factory terminal intel 10181 | -7/Lower Caves | Discovered new exit (range 14) 10212 | -7/Lower Caves | Identified exit to Lower Caves 10636 | -7/Lower Caves | Spotted B-75 Beast 10642 | -7/Lower Caves | Destroyed B-75 Beast 10892 | -7/Lower Caves | Entered another Lower Caves area 10978 | -7/Lower Caves | Encountered a Warlord checkpoint 11106 | -7/Lower Caves | Spotted 0A-Z2Q(f) 11106 | -7/Lower Caves | Spotted DZ-XSP(f) 11106 | -7/Lower Caves | Spotted M8-CV7(f) 11107 | -7/Lower Caves | Encountered a Master Thief 11107 | -7/Lower Caves | Encountered a Master Thief 11107 | -7/Lower Caves | Encountered a Master Thief 11108 | -7/Lower Caves | Spotted DB-LWX(f) 11109 | -7/Lower Caves | Encountered a Master Thief 11109 | -7/Lower Caves | XL Autogun Array stolen by Master Thief 11111 | -7/Lower Caves | Potential Leg stolen by Master Thief 11111 | -7/Lower Caves | Potential Leg stolen by Master Thief 11111 | -7/Lower Caves | Adv. Weapon Cycler stolen by Master Thief 11120 | -7/Lower Caves | Destroyed M8-CV7(f) 11209 | -7/Lower Caves | Discovered new exit (range 11) 11225 | -7/Lower Caves | Identified exit to Data Miner 11436 | -7/Lower Caves | Build established: Hacker-Gladiator 11564 | -7/Lower Caves | Spotted B-75 Beast 11659 | -7/Lower Caves | Core integrity fell below 50% 11726 | -7/Lower Caves | Destroyed B-75 Beast 11843 | -7/Lower Caves | Entered Data Miner 11843 | -7/Data Miner | Discovered new exit (range 6) 11866 | -7/Data Miner | Met Data Miner 11892 | -7/Data Miner | Learned location of Section 7 (-2) 11892 | -7/Data Miner | Acquired the access code to Warlord's prototype stash 11914 | -7/Data Miner | Received God Mode back door access code from Data Miner 11932 | -7/Data Miner | Interfaced with the Data Conduit 12044 | -7/Data Miner | Entered Proximity Caves 12192 | -6/Proximity Caves | Core integrity fell below 20% 12312 | -6/Proximity Caves | Build established: Scavenger-Mutant 12507 | -6/Proximity Caves | Learned location of 1 exit from Lower Caves 12511 | -6/Proximity Caves | Learned Factory trap positions 12725 | -6/Proximity Caves | Acquired the password to a Derelict Tinkerer's latest research 12733 | -6/Proximity Caves | Found Prototype Special Weapon 13088 | -6/Proximity Caves | Caught by Unaware searching for contraband prototypes 13134 | -6/Proximity Caves | Caught by Unaware searching for contraband prototypes 13208 | -6/Proximity Caves | Spotted B-75 Beast 13240 | -6/Proximity Caves | Destroyed B-75 Beast 13334 | -6/Proximity Caves | Reached level 20 13376 | -6/Proximity Caves | Discovered exit to Factory (range 10) 13380 | -6/Proximity Caves | Learned location of 1 exit from Proximity Caves 13442 | -6/Proximity Caves | Build established: Hacker-Mutant 13685 | -6/Proximity Caves | Entered Factory 13686 | -6/Factory | Loaded intel: 101 trap records 13686 | -6/Factory | Core integrity fell below 50% 13687 | -6/Factory | Loaded intel: 275 machine locations 13688 | -6/Factory | Loaded intel: 28 terminal locations 13825 | -6/Factory | Found Scatter Rocket Array 13855 | -6/Factory | Fabricated Imp. Component Analysis Suite? 13976 | -6/Factory | Identified exit to Lower Caves 13976 | -6/Factory | Identified exit to Extension 14127 | -6/Factory | Garrison activated, responded to threat 14163 | -6/Factory | Core integrity fell below 20% 14189 | -6/Factory | Build established: Hacker-Gunner 14345 | -6/Factory | Garrison activated, responded to threat 14377 | -6/Factory | Destroyed 11 combat bots 14554 | -6/Factory | Intercept squad dispatched 14582 | -6/Factory | Spotted Tracker 14588 | -6/Factory | Destroyed Tracker 14595 | -6/Factory | Found Exp. Targeting Computer 14602 | -6/Factory | Found Exp. Phase Shifter 14620 | -6/Factory | Spotted Combat Programmer 14621 | -6/Factory | Destroyed Combat Programmer 14735 | -6/Factory | First assault squad dispatched 14802 | -6/Factory | Entered Extension 14803 | -6/Extension | Loaded intel: 27 machine locations 14804 | -6/Extension | Reached level 21 14810 | -6/Extension | Disrupted transfer network 14856 | -6/Extension | Rescued A7 14978 | -6/Extension | Rescued a captive Derelict 14978 | -6/Extension | Rescued a captive Derelict 14994 | -6/Extension | Identified exit to Cetus 15017 | -6/Extension | Local machine network offline 15082 | -6/Extension | Rescued a captive Derelict 15085 | -6/Extension | Rescued a captive Derelict 15124 | -6/Extension | Rescued a captive Derelict 15168 | -6/Extension | Spotted B-75 Beast 15175 | -6/Extension | Allies destroyed B-75 Beast 15178 | -6/Extension | Spotted B-75 Beast 15196 | -6/Extension | Allies destroyed B-75 Beast 15218 | -6/Extension | Rescued a captive Derelict 15218 | -6/Extension | Rescued a captive Derelict 15502 | -6/Extension | First assault squad dispatched 15614 | -6/Extension | Discovered new exit (range 10) 15659 | -6/Extension | Build established: Commander-Gunner 15659 | -6/Extension | Entered Cetus 15659 | -6/Cetus | Accompanied by 17 allies (A7) 15660 | -6/Cetus | Loaded intel: 24 machine locations 15661 | -6/Cetus | Reached level 22 15664 | -6/Cetus | Acquired a Cetus Manufacturing Module code from A7 15675 | -6/Cetus | Spotted Cetus Guard 15675 | -6/Cetus | Spotted Cetus Guard 15678 | -6/Cetus | Spotted Cetus Guard 15678 | -6/Cetus | Spotted Cetus Guard 15681 | -6/Cetus | Destroyed Cetus Guard 15688 | -6/Cetus | Allies destroyed Cetus Guard 15690 | -6/Cetus | Allies destroyed Cetus Guard 15695 | -6/Cetus | Allies destroyed Cetus Guard 15699 | -6/Cetus | System corruption reached 10% 15708 | -6/Cetus | Upgraded with Power slot (x1) 15772 | -6/Cetus | Discovered new exit (range 18) 15947 | -6/Cetus | Started Cetus Manufacturing Module 15955 | -6/Cetus | Escorted A7 to Cetus Mainframe 15972 | -6/Cetus | Manufactured an Enhanced Grunt 15989 | -6/Cetus | Discovered new exit (range 18) 15997 | -6/Cetus | Manufactured an Enhanced Grunt 16019 | -6/Cetus | Spotted Cetus Guard 16020 | -6/Cetus | Spotted Cetus Guard 16021 | -6/Cetus | Destroyed Cetus Guard 16022 | -6/Cetus | Manufactured an Enhanced Grunt 16023 | -6/Cetus | Spotted Cetus Guard 16023 | -6/Cetus | Spotted Cetus Guard 16028 | -6/Cetus | Destroyed Cetus Guard 16037 | -6/Cetus | Discovered new exit (range 18) 16038 | -6/Cetus | Allies destroyed Cetus Guard 16040 | -6/Cetus | Allies destroyed Cetus Guard 16047 | -6/Cetus | Manufactured an Enhanced Grunt 16048 | -6/Cetus | Met Revision 17 16049 | -6/Cetus | Local machine network offline 16072 | -6/Cetus | Manufactured an Enhanced Grunt 16329 | -6/Cetus | Entered Archives 16329 | -6/Archives | Accompanied by 17 allies (A7) 16330 | -6/Archives | Loaded intel: 8 machine locations 16334 | -6/Archives | Received a hacking code to weaken MAIN.C 16385 | -6/Archives | Unable to access archive contents 16387 | -6/Archives | Discovered new exit (range 17) 16409 | -6/Archives | Unable to access archive contents 16411 | -6/Archives | Discovered new exit (range 17) 16433 | -6/Archives | Unable to access archive contents 16435 | -6/Archives | Discovered new exit (range 17) 16694 | -6/Archives | Entered Hub_04(d) 16694 | -6/Hub_04(d) | Accompanied by 11 allies 16695 | -6/Hub_04(d) | Loaded intel: 74 machine locations 16749 | -6/Hub_04(d) | Discovered new exit (range 9) 16805 | -6/Hub_04(d) | Local machine network offline 16952 | -6/Hub_04(d) | Network Hub disabled 16957 | -6/Hub_04(d) | Network Hub disabled 17004 | -6/Hub_04(d) | Discovered new exit (range 8) 17023 | -6/Hub_04(d) | Spotted Lightning 17025 | -6/Hub_04(d) | Spotted Lightning 17039 | -6/Hub_04(d) | Entered Factory 17040 | -5/Factory | Loaded intel: 242 machine locations 17041 | -5/Factory | Loaded intel: 26 terminal locations 17041 | -5/Factory | Reached level 23 17102 | -5/Factory | Build established: Scavenger-Gunner 17339 | -5/Factory | First assault squad dispatched 17359 | -5/Factory | Fabricated Imp. Armor Integrity Analyzer (x1) 17547 | -5/Factory | Specialist reinforcements revealed to be Infiltrators 17876 | -5/Factory | Crushed by falling debris 17885 | -5/Factory | Intercept squad dispatched 17892 | -5/Factory | Spotted Tracker 17899 | -5/Factory | Destroyed Tracker 17905 | -5/Factory | Spotted Combat Programmer 17906 | -5/Factory | Destroyed Combat Programmer 17960 | -5/Factory | Discovered new exit (range 6) 17970 | -5/Factory | Core integrity fell below 50% 18065 | -5/Factory | Identified exit to Upper Caves 18099 | -5/Factory | Upgraded with Power slot (x1) 18318 | -5/Factory | Reached level 24 18337 | -5/Factory | Sucked down chute 18337 | -5/Factory | Entered Waste 18393 | -5/Waste | Destroyed C-40 Crusher 18409 | -5/Waste | Spotted C-40 Crusher 18411 | -5/Waste | Destroyed C-40 Crusher 18415 | -5/Waste | Spotted C-40 Crusher 18423 | -5/Waste | Destroyed C-40 Crusher 18425 | -5/Waste | Spotted C-40 Crusher 18431 | -5/Waste | Destroyed C-40 Crusher 18437 | -5/Waste | Upgraded with Utility slot (x1) 18437 | -5/Waste | Spotted C-40 Crusher 18450 | -5/Waste | Crushed by Compactor (1 part destroyed, 2 dropped) 18470 | -5/Waste | Crushed by Compactor (0 parts destroyed, 2 dropped) 18473 | -5/Waste | Crushed by Compactor (0 parts destroyed, 1 dropped) 18473 | -5/Waste | Destroyed C-40 Crusher 18540 | -5/Waste | Found Damper Plating 18543 | -5/Waste | Spotted C-40 Crusher 18550 | -5/Waste | Destroyed C-40 Crusher 18603 | -5/Waste | Found Damper Plating 18815 | -5/Waste | Discovered new exit (range 18) 18848 | -5/Waste | Warlord forces began an assault 18963 | -5/Waste | Entered Factory 18963 | -5/Factory | Accompanied by 18 allies 18964 | -5/Factory | Loaded intel: 259 machine locations 19462 | -5/Factory | Discovered new exit (range 15) 19469 | -5/Factory | Garrison activated, responded to threat 19586 | -5/Factory | Crushed by falling debris 19586 | -5/Factory | Core integrity fell below 20% 19587 | -5/Factory | Destroyed by I5-UR3(s) with Heavy Battle Rifle Last Messages --------------- Accumulated fabnet effectiveness: Active: 4% Next depth: 9% 19574_ System corrupted: Matter fused (-7). 19582_ KU-1WT(g) triggered Ambush Trap. 19582_ B-60 Warrior emerges from a hatch in the floor. 19582_ G-50 Soldier emerges from a hatch in the floor. 19583_ B-60 Warrior sneak attacks. 19583_ KU-1WT(g) suffers critical hit (Smash). 19583_ KU-1WT(g) system corrupted by crushing effect. 19583_ KU-1WT(g) knocked back. 19584_ KU-1WT(g) system terminally corrupted. 19585_ G-50 Soldier destroyed. 19585_ I5-UR3(s) system corrupted by crushing effect. 19585_ E3-HD1(l) system corrupted by crushing effect. 19586_ Acquired 78 matter. 19586_ E3-HD1(l) system terminally corrupted. 19586_ The unstable cave ceiling collapses. 19586_ Crushed by falling debris. 19586_ Corrupted Flexi-carbon Leg crushed. Map ----- +----------------------------------------------------+ | ??????????????????????????????????????"""" | | ??????????????????????????????????????"""" | | ?????????????????????????????????????????? | | ?????????????????????????????????????????? | | ?????????????????????????????????????????? | | ?????????????????????????????????????????? | | ?????????????????????????????????????????? | | ?????????????????????????????????????????? | | ?????????????????????????????????????????? | | ?????????????????????????????????????????? | | ?????????????????????????????????????????? | | ?????????????????????????????????????????? | | ?????????????????????????????????????????? | | ?????????????????????????????????????????? | | ?????????????????????????????????????????? | | ???????????????????????????##????????????? | | ??????????????????????????? ????????????? | | ?????????????????########?# #????????????? | | ?????????????????# #?# #????????????? | | ?????????????????# ""#?# #??????!?????? | | ?????????????????# F"#?# #????????????? | | ?????????????????# d "#?# #?????"""""??? | | ?????????????????#% ""### ###???"""""??? | | ????????????????##g # #???"""????? | | ???????#"T"######s####+## " #??????????? | | ???# b@%dgl mg "T #??????????? | | ??#" ######;# ## #??????????? | | ??#" ???????? # ## #??????????? | | ???" """????????????# ####+###??????????? | | ???T??"""????????????# ## #??????????? | | ???"??"""????????????# ## #??????????? | | ???"?????????????????# ## " " #??????????? | | ???"??"""????????????# ## " " #??????????? | | ??????"""????????????# ## " " #??????????? | | ??????"""????????????? ?# " " ##?????# | | ?????????????????"""?? ?# " " "##????# | | ?????????????????"""?? ?# " " #"########## | | ?????????????????"""?? ?# " " # | | ?????????????????????? ?# " " # | | ?????????????????????? ?# " " # ! | | ?????????????????????? ?# # " | | ?????????????????????? ?####### " | | ??????????????????????????????# " " | | ??????????????????????????????# " " | | ??????????????????????????????# " " | | ??????????????????????????""??# =% | | ?????????????????????????S""??######/ #### | | ??????????"""????????????""???#????# ##??# | | ??????????"""?????????????????#????# #???? | | ??????????"""??????????????????????# #???? | +----------------------------------------------------+ Best States ------------- Heat Dissipation 88 Energy Generation 75 Energy Capacity 1040 Matter Stores 300 Matter Capacity 300 Sight Range 18 Robot Scan Range 18 Terrain Scan Range 16 Terrain Scan Density 210 Jamming Range 14 Armor Coverage 1600 Resistance: KI 30 Resistance: TH 25 Resistance: EM 90 Weapon Cycling 25 Melee Speed Boost 30 Phase Shifting 20 Evasion (%) 66 Targeting Accuracy 16 Core Analysis 6 Armor Integrity Analysis 40 Recoil Reduction 5 Particle Charging 25 Kinecelleration 40 Salvage Targeting 2 Offensive Hacking 29 Defensive Hacking 29 Item Schematics ----------------- System Shield | -8/Materials | Extracted Imp. Ion Engine | -8/Materials | Extracted Particle Charger | -8/Materials | Extracted Assault Rifle | -8/Materials | Extracted Com. Battery | -8/Materials | Extracted Hrd. Light Armor Plating | -8/Materials | Extracted Hvy. Particle Cannon | -8/Materials | Extracted Airjet | -8/Materials | Extracted Imp. Light Cannon | -8/Materials | Extracted Sml. Matter Pod | -8/Materials | Extracted Nuclear Pulse Array | -7/Factory | Hacked Adv. Signal Interpreter | -7/Factory | Hacked Imp. Component Analysis Suite | -7/Factory | Hacked Combat Drone Bay | -7/Data Miner | Free Lgt. Regenerative Plating | -7/Data Miner | Free Biomechanical Wings | -7/Data Miner | Free Thermal Defense Suite | -7/Data Miner | Free Imp. Heavy Machine Gun | -7/Data Miner | Free Hvy. Treads | -7/Data Miner | Free Wave Gun | -7/Data Miner | Free Hyb. Fission Core | -7/Data Miner | Free Imp. Thermal Shield | -7/Data Miner | Free Imp. Fusion Compressor | -7/Data Miner | Free Lgt. Antimatter Reactor | -6/Extension | Hacked Imp. Armor Integrity Analyzer | -6/Hub_04(d) | Hacked Micro-nuke Launcher | -5/Factory | Hacked Adv. Hacking Suite | -5/Factory | Scanalyzed Adv. System Restoration Module | -5/Factory | Scanalyzed Hyp. Railgun | -5/Factory | Hacked Exp. ECM Suite | -5/Factory | Hacked Gyrokinetic Inverter | -5/Factory | Hacked Quantum Capacitor | -5/Factory | Hacked Adv. Particle Charger | -5/Factory | Hacked Antigrav System | -5/Factory | Hacked Com. HERF Cannon | -5/Factory | Hacked Robot Schematics ------------------ S-27 Virus | -7/Data Miner | Free W-25 Informer | -7/Data Miner | Free A-15 Conveyor | -7/Data Miner | Free O-24 Administrator | -7/Data Miner | Free B-60 Warrior | -7/Data Miner | Free M-22 Extractor | -5/Factory | Hacked Fabricated ------------ Adv. Signal Interpreter | x2 | -7/Factory | Preloaded Imp. Component Analysis Suite | x1 | -6/Factory | Preloaded Imp. Armor Integrity Analyzer | x1 | -5/Factory Alien Tech Used ----------------- None Achievements -------------- None Challenges ------------ None RPGLIKE | -11 -10 -10 -10 -9 -8 -8 -8 -8 -8 -8 -8 -7 -7 -7 -7 -7 -7 -6 -6 -6 -6 -6 -6 -5 -5 -5 --------- Run | Jun Mat Min Exi Min Mat Gar Mat Gar Mat Gar Mat Fac Was Fac Low Low Dat Pro Fac Ext Cet Arc Hub Fac Was Fac Levels Raised 23 | . 4 . 1 1 6 1 . 1 . 1 1 1 . 1 . . . 1 . 1 1 . . 2 . . XP Earned 38219 | 3000 6157 1269 211 2180 8378 2339 320 1347 296 930 951 1907 38 1065 74 127 248 719 1317 1580 695 166 592 1601 32 680 XP Spent 37400 | . 9000 . 1460 . 8850 500 . 4100 . 1540 1400 1400 . 1550 . 200 . . 1500 1400 800 . . 1100 2600 . Upgrades 60 | . 19 . 6 . 10 1 . 3 . 7 1 2 . 2 . 1 . . 3 2 1 . . 1 1 . Power Slot 3 | . . . . . . 1 . . . . . . . . . . . . . . 1 . . 1 . . Propulsion Slot 4 | . 1 . . . 2 . . . . . 1 . . . . . . . . . . . . . . . Utility Slot 8 | . 4 . . . 2 . . 1 . . . . . . . . . . . . . . . . 1 . Weapon Slot 3 | . 3 . . . . . . . . . . . . . . . . . . . . . . . . . Core Integrity 4 | . . . 4 . . . . . . . . . . . . . . . . . . . . . . . Heat Dissipation 6 | . 3 . . . . . . . . 3 . . . . . . . . . . . . . . . . Mass Support 2 | . . . . . 2 . . . . . . . . . . . . . . . . . . . . . Inventory Capacity 5 | . 2 . . . 2 . . . . . . . . 1 . . . . . . . . . . . . Sight Range 2 | . 1 . . . . . . . . . . . . 1 . . . . . . . . . . . . Sensor Range 1 | . . . . . . . . . . 1 . . . . . . . . . . . . . . . . Terrain Scan Density 2 | . 2 . . . . . . . . . . . . . . . . . . . . . . . . . Ranged Accuracy 4 | . 2 . . . 1 . . 1 . . . . . . . . . . . . . . . . . . Melee Accuracy 2 | . . . . . . . . . . . . . . . . 1 . . . 1 . . . . . . Hack Attack % 3 | . . . . . . . . . . 2 . 1 . . . . . . . . . . . . . . Hack Defense % 3 | . . . . . 1 . . . . 1 . 1 . . . . . . . . . . . . . . KI Damage % 4 | . 1 . 2 . . . . 1 . . . . . . . . . . . . . . . . . . TH Damage % 4 | . . . . . . . . . . . . . . . . . . . 3 1 . . . . . . Protomatter Created 6791 | . 237 78 107 63 400 619 147 634 47 762 984 207 274 359 20 82 . 174 265 388 235 . 167 400 86 56 Integrity Restored 8510 | . 369 258 192 189 750 709 48 430 92 447 330 273 595 457 58 216 . 522 453 999 401 22 1 699 . . Core 5871 | . 328 258 192 189 672 260 48 242 57 256 175 160 133 428 . 216 . 522 453 579 38 12 . 653 . . Parts 2639 | . 41 . . . 78 449 . 188 35 191 155 113 462 29 58 . . . . 420 363 10 1 46 . . Protomatter Decayed 5889 | . 100 22 . . 201 331 . 602 68 595 862 111 211 441 . . . . 10 584 661 317 451 260 . 62 Game ------ Seed DataSkeletonField Manual? 1 Play Time 03:56:00 Cumulative 419.2 hours Start 2023.03.05 @ 16:26:51 End 2023.03.06 @ 03:34:49 Sessions 2 Manual Loads 0 Difficulty Rogue Special Mode Winter2019/RPGLIKE Game No. 473 Rogue 473 Adventurer 0 Explorer 0 Win Type - Total 0 Types 0/0/0/0/0/0/0/0/0 Lore% 55 Gallery% 76 Achievement% 62 Wizard Run 0 Options --------- ASCII 0 Keyboard 0 Movement Mouse Keybinds 0 Fullscreen 2 Font 24/Smallcaps Map View 76x50 Tactical HUD 1 Map Filters NONE Filters NONE Steam 1 RUN: c176f3d9-234a-4f43-9901-517f14f56d73